fUSD/lending_fUSD_20260329
["ID","MTS","AMOUNT","RATE_DAILY","PERIOD"]
[419035185,1774794650807,-403.83679365,0.00013699,2]
[419035186,1774794650818,-500.0,0.00013699,2]
[419035187,1774794650827,-500.0,0.00013699,2]
[419035188,1774794650836,-173.97984215,0.00013699,2]
[419035189,1774794650849,-326.02015785,0.00013699,2]
[419035190,1774794650859,-500.0,0.00013699,2]
[419035191,1774794650868,-609.23348249,0.00013699,2]
[419035192,1774794650877,-500.0,0.00013699,2]
[419035193,1774794650886,-500.0,0.00013699,2]
[419035194,1774794650895,-216.07635966,0.00013699,2]
[419035195,1774794696562,452.97,0.0002555,120]
[419035200,1774794749524,1440.22,0.00010564,30]
[419035201,1774794796452,500.0,0.00025208,120]
[419035202,1774794805203,192.11,5.992e-05,2]
[419035203,1774794805593,192.11,6.307e-05,2]
[419035204,1774794805869,192.11,6.623e-05,2]
[419035205,1774794806074,192.11,6.938e-05,2]
[419035206,1774794806283,192.11,7.254e-05,2]
[419035207,1774794806493,192.11,7.569e-05,2]
[419035208,1774794806897,192.11,7.884e-05,2]
[419035209,1774794807202,192.11,8.2e-05,2]
[419035210,1774794807405,192.11,8.515e-05,2]
[419035211,1774794807724,192.11,8.83e-05,2]
[419035212,1774794807920,192.11,9.146e-05,2]
[419035213,1774794808123,192.11,9.461e-05,2]
[419035214,1774794808337,192.11,9.777e-05,2]
[419035215,1774794808638,192.11,0.00010092,2]
[419035216,1774794808846,192.11,0.00010407,2]
[419035217,1774794828855,267.92,0.00016,120]
[419035223,1774795401187,500.0,0.00025226,120]
[419035226,1774795833237,-192.11,0.00010723,2]
[419035227,1774795833247,-151.95442731,0.00010882,2]
[419035228,1774795833298,-21.31557269,0.00010882,2]
[419035229,1774795833308,-200.0,0.00010973,2]
[419035230,1774795833317,-192.11,0.00011038,2]
[419035231,1774795833326,-192.11,0.00011353,2]
[419035232,1774795833335,-173.27,0.00011487,2]
[419035233,1774795833345,-150.58434503,0.000115,2]
[419035234,1774795833354,-651.78304556,0.000115,2]
[419035235,1774795833366,-138.34664626,0.000115,2]
[419035236,1774795833378,-718.30767947,0.00011507,2]
[419035237,1774795833394,-689.96232053,0.00011507,2]
[419035238,1774795833404,-59.68174937,0.00011597,2]
[419035239,1774795833499,-1140.31825063,0.00011597,2]
[419035241,1774795833509,-300.0,0.00011597,2]
[419035242,1774795833519,-500.0,0.00011598,2]
[419035243,1774795833528,-496.15738525,0.00011598,2]
[419035264,1774795837533,-3.84261475,0.00011598,2]
[419035265,1774795837542,-325.53269959,0.00011598,2]
[419035266,1774795837602,-174.46730041,0.00011598,2]
[419035268,1774795837612,-500.0,0.00011598,2]
[419035269,1774795837622,-500.0,0.00011598,2]
[419035270,1774795837633,-500.0,0.00011598,2]
[419035271,1774795837642,-500.0,0.00011598,2]
[419035272,1774795837651,-500.0,0.00011598,2]
[419035273,1774795837661,-500.0,0.00011598,2]
[419035274,1774795837670,-500.0,0.00011598,2]
[419035275,1774795837680,-500.0,0.00011598,2]
[419035276,1774795837689,-500.0,0.00011598,2]
[419035277,1774795837699,-500.0,0.00011598,2]
[419035278,1774795837708,-500.0,0.00011598,2]
[419035279,1774795837717,-359.70161731,0.00011598,2]
[419035280,1774795837730,-140.29838269,0.00011598,2]
[419035281,1774795837740,-500.0,0.00011598,2]
[419035282,1774795837750,-175.62063372,0.00011598,2]
[419035283,1774795837774,-324.37936628,0.00011598,2]
[419035284,1774795837783,-500.0,0.00011598,2]
[419035285,1774795837793,-490.44925757,0.00011598,2]
[419035286,1774795837822,-9.55074243,0.00011598,2]
[419035287,1774795837832,-500.0,0.00011598,2]
[419035288,1774795837841,-500.0,0.00011598,2]
[419035289,1774795837851,-500.0,0.00011598,2]
[419035290,1774795837861,-500.0,0.00011598,2]
[419035291,1774795837870,-500.0,0.00011598,2]
[419035292,1774795837880,-500.0,0.00011598,2]
[419035293,1774795837890,-500.0,0.00011598,2]
[419035294,1774795837899,-500.0,0.00011598,2]
[419035295,1774795837909,-500.0,0.00011598,2]
[419035296,1774795837918,-500.0,0.00011598,2]
[419035297,1774795837928,-500.0,0.00011598,2]
[419035299,1774795837938,-500.0,0.00011598,2]
[419035300,1774795837947,-500.0,0.00011598,2]
[419035301,1774795837956,-500.0,0.00011598,2]
[419035302,1774795837965,-500.0,0.00011598,2]
[419035303,1774795837974,-500.0,0.00011598,2]
[419035304,1774795837985,-500.0,0.00011598,2]
[419035305,1774795837994,-500.0,0.00011598,2]
[419035306,1774795838004,-500.0,0.00011598,2]
[419035307,1774795838014,-500.0,0.00011598,2]
[419035308,1774795838023,-500.0,0.00011598,2]
[419035309,1774795838033,-500.0,0.00011598,2]
[419035310,1774795838042,-500.0,0.00011598,2]
[419035311,1774795838051,-189.85602074,0.00011598,2]
[419035313,1774795838061,-208.67823702,0.00011598,2]
[419035314,1774795838080,-291.32176298,0.00011598,2]
[419035315,1774795838090,-500.0,0.00011598,2]
[419035316,1774795838099,-144.43388195,0.00011598,2]
[419035317,1774795838111,-355.56611805,0.00011598,2]
[419035318,1774795838120,-301.23388195,0.00011598,2]
[419035319,1774795838132,-198.76611805,0.00011598,2]
[419035320,1774795838141,-500.0,0.00011598,2]
[419035321,1774795838150,-500.0,0.00011598,2]
[419035322,1774795838159,-165.49686915,0.00011598,2]
[419035323,1774795838171,-334.50313085,0.00011598,2]
[419035324,1774795838181,-500.0,0.00011598,2]
[419035325,1774795838190,-500.0,0.00011598,2]
[419035326,1774795838200,-500.0,0.00011598,2]
[419035327,1774795838210,-500.0,0.00011598,2]
[419035328,1774795838219,-500.0,0.00011598,2]
[419035329,1774795838228,-500.0,0.00011598,2]
[419035330,1774795838237,-500.0,0.00011598,2]
[419035331,1774795838247,-500.0,0.00011598,2]
[419035332,1774795838256,-366.0425826,0.00011598,2]
[419035333,1774795838266,-500.0,0.00011598,2]
[419035334,1774795838276,-500.0,0.00011598,2]
[419035335,1774795838285,-500.0,0.00011598,2]
[419035336,1774795838295,-500.0,0.00011598,2]
[419035337,1774795838305,-500.0,0.00011598,2]
[419035338,1774795838629,-500.0,0.00011598,2]
[419035339,1774795838642,-500.0,0.00011598,2]
[419035340,1774795838651,-500.0,0.00011598,2]
[419035341,1774795838660,-500.0,0.00011598,2]
[419035342,1774795838670,-500.0,0.00011598,2]
[419035343,1774795838679,-500.0,0.00011598,2]
[419035344,1774795838688,-500.0,0.00011598,2]
[419035345,1774795838697,-500.0,0.00011598,2]
[419035346,1774795838707,-500.0,0.00011598,2]
[419035347,1774795838716,-279.20694606,0.00011598,2]
[419035348,1774795840640,-220.79305394,0.00011598,2]
[419035349,1774795840650,-500.0,0.00011598,2]
[419035350,1774795840661,-500.0,0.00011598,2]
[419035351,1774795840671,-500.0,0.00011598,2]
[419035352,1774795840680,-500.0,0.00011598,2]
[419035353,1774795840690,-150.0,0.00011598,2]
[419035354,1774795840700,-287.0,0.00011598,2]
[419035355,1774795840709,-17292.30243694,0.00011599,2]
[419035376,1774795846090,-1710.24030273,0.000115,2]
[419035377,1774795846099,-3103.14139668,0.00011599,2]
[419035378,1774795846111,-2661.71347998,0.00011599,2]
[419035379,1774795846127,-7441.51529795,0.00011599,2]
[419035386,1774796136856,167.4,8.623e-05,2]
[419035387,1774796337169,166.96,0.00025028,120]
[419035389,1774797006868,6950.96,9.5e-05,3]
[419035390,1774797006892,10000.01,9.5e-05,3]
[419035391,1774797006917,10000.01,9.5e-05,3]
[419035392,1774797006942,10000.01,9.5e-05,3]
[419035393,1774797006966,10000.01,9.5e-05,3]
[419035394,1774797006990,10000.01,9.5e-05,3]
[419035395,1774797007015,3049.40766188,9.5e-05,3]
[419035401,1774797033229,-1100.0,0.000107,3]
[419035402,1774797033239,-150.0,0.00010722,2]
[419035403,1774797033249,-1200.0,0.00010722,2]
[419035404,1774797033258,-300.0,0.00010722,2]
[419035405,1774797033268,-500.0,0.00010723,2]
[419035406,1774797033277,-500.0,0.00010723,2]
[419035407,1774797033287,-500.0,0.00010723,2]
[419035408,1774797033297,-500.0,0.00010723,2]
[419035409,1774797033307,-500.0,0.00010723,2]
[419035410,1774797033317,-500.0,0.00010723,2]
[419035411,1774797033329,-500.0,0.00010723,2]
[419035412,1774797033339,-500.0,0.00010723,2]
[419035413,1774797033349,-500.0,0.00010723,2]
[419035414,1774797033359,-500.0,0.00010723,2]
[419035415,1774797033368,-500.0,0.00010723,2]
[419035416,1774797033378,-500.0,0.00010723,2]
[419035417,1774797033387,-500.0,0.00010723,2]
[419035418,1774797033398,-500.0,0.00010723,2]
[419035419,1774797033407,-500.0,0.00010723,2]
[419035420,1774797033416,-500.0,0.00010723,2]
[419035421,1774797033426,-500.0,0.00010723,2]
[419035422,1774797033435,-500.0,0.00010723,2]
[419035423,1774797033445,-500.0,0.00010723,2]
[419035424,1774797033455,-500.0,0.00010723,2]
[419035425,1774797033464,-500.0,0.00010723,2]
[419035426,1774797033474,-500.0,0.00010723,2]
[419035427,1774797033484,-500.0,0.00010723,2]
[419035428,1774797033494,-500.0,0.00010723,2]
[419035429,1774797033506,-2300.0,0.000108,3]
[419035430,1774797033515,-3400.0,0.000109,3]
[419035431,1774797033525,-166.66,0.00010959,2]
[419035432,1774797033535,-1615.9,0.0001102,2]
[419035433,1774797033545,-166.66,0.00011068,2]
[419035434,1774797033555,-150.0,0.00011088,2]
[419035435,1774797033564,-166.66,0.00011178,2]
[419035436,1774797033575,-500.0,0.00011224,2]
[419035437,1774797033584,-500.0,0.00011224,2]
[419035438,1774797033594,-506.75169863,0.00011224,2]
[419035439,1774797033605,-166.66,0.00011288,2]
[419035441,1774797033615,-1600.0,0.00011298,2]
[419035443,1774797033625,-311.94085178,0.000113,2]
[419035444,1774797033635,-569.81186375,0.000113,2]
[419035445,1774797033644,-622.33372288,0.000113,2]
[419035446,1774797033655,-639.82985001,0.000113,2]
[419035447,1774797033664,-153.29723888,0.000113,2]
[419035449,1774797033674,-150.0,0.000113,2]
[419035451,1774797033684,-166.66,0.00011397,2]
[419035453,1774797033693,-6986.1023,0.00011399,2]
[419035455,1774797033703,-1000.0,0.00011399,2]
[419035456,1774797033712,-2500.0,0.00011399,2]
[419035458,1774797033722,-553.50092845,0.00011399,2]
[419035460,1774797033732,-503.50570299,0.00011473,2]
[419035462,1774797033743,-500.0,0.00011473,2]
[419035463,1774797033752,-500.0,0.00011473,2]
[419035464,1774797033762,-500.0,0.00011473,2]
[419035465,1774797033772,-500.0,0.00011473,2]
[419035466,1774797033782,-503.0948792,0.00011473,2]
[419035467,1774797033792,-500.0,0.00011473,2]
[419035468,1774797033801,-500.0,0.00011473,2]
[419035469,1774797033811,-212.61945674,0.00011489,2]
[419035470,1774797033821,-500.0,0.00011492,2]
[419035471,1774797033830,-500.0,0.00011492,2]
[419035472,1774797033839,-500.0,0.00011492,2]
[419035473,1774797033848,-500.0,0.00011492,2]
[419035474,1774797033858,-500.0,0.00011492,2]
[419035475,1774797033868,-500.0,0.00011492,2]
[419035476,1774797033878,-500.0,0.00011492,2]
[419035477,1774797033888,-500.0,0.00011492,2]
[419035478,1774797033897,-500.0,0.00011492,2]
[419035479,1774797033906,-500.0,0.00011492,2]
[419035480,1774797033916,-500.0,0.00011492,2]
[419035481,1774797033926,-151.0,0.00011492,2]
[419035482,1774797033935,-151.0,0.00011492,2]
[419035483,1774797033944,-500.0,0.00011492,2]
[419035484,1774797034248,-151.0,0.00011492,2]
[419035485,1774797034289,-151.0,0.00011492,2]
[419035486,1774797034299,-151.0,0.00011492,2]
[419035487,1774797034308,-151.0,0.00011492,2]
[419035488,1774797034318,-151.0,0.00011492,2]
[419035489,1774797034328,-151.0,0.00011492,2]
[419035490,1774797034339,-151.0,0.00011492,2]
[419035491,1774797034348,-151.0,0.00011492,2]
[419035492,1774797034358,-151.0,0.00011492,2]
[419035493,1774797034367,-500.0,0.00011492,2]
[419035494,1774797034377,-500.0,0.00011492,2]
[419035495,1774797034387,-500.0,0.00011492,2]
[419035496,1774797034396,-500.0,0.00011492,2]
[419035497,1774797034406,-500.0,0.00011492,2]
[419035498,1774797034416,-500.0,0.00011492,2]
[419035499,1774797034425,-500.0,0.00011492,2]
[419035500,1774797034435,-500.0,0.00011492,2]
[419035501,1774797034445,-500.0,0.00011492,2]
[419035502,1774797034454,-500.0,0.00011492,2]
[419035503,1774797034464,-500.0,0.00011492,2]
[419035504,1774797034474,-151.0,0.00011492,2]
[419035505,1774797034483,-1386.78395259,0.00011492,2]
[419035506,1774797034493,-5103.811,0.00011495,2]
[419035507,1774797034503,-281.982,0.00011495,2]
[419035508,1774797034512,-159.37437946,0.00011495,2]
[419035509,1774797034522,-210.89200302,0.00011495,2]
[419035510,1774797034532,-2100.16706681,0.00011495,2]
[419035511,1774797034543,-500.0,0.00011498,2]
[419035512,1774797034553,-183.35991567,0.00011498,2]
[419035513,1774797034562,-500.0,0.00011498,2]
[419035514,1774797034572,-581.988833,0.00011498,2]
[419035515,1774797034581,-500.0,0.00011498,2]
[419035516,1774797034591,-500.0,0.00011498,2]
[419035517,1774797034600,-500.0,0.00011498,2]
[419035518,1774797034609,-500.0,0.00011498,2]
[419035519,1774797034619,-500.0,0.00011498,2]
[419035520,1774797034628,-500.0,0.00011498,2]
[419035521,1774797034638,-500.0,0.00011498,2]
[419035522,1774797034648,-486.60425826,0.00011498,2]
[419035523,1774797034658,-500.0,0.00011498,2]
[419035524,1774797034668,-500.0,0.00011498,2]
[419035525,1774797034679,-500.0,0.00011498,2]
[419035526,1774797034690,-500.0,0.00011498,2]
[419035527,1774797034702,-500.0,0.00011498,2]
[419035528,1774797034712,-168.29600152,0.00011498,2]
[419035529,1774797034721,-318.79279508,0.00011498,2]
[419035530,1774797034733,-15841.99076588,0.00011499,2]
[419035531,1774797034751,-21156.89567157,0.00011499,2]
[419035532,1774797034797,-454.02947525,0.00011499,2]
[419035533,1774797034809,-706.49,0.00011499,2]
[419035534,1774797037699,-300.0,0.000107,3]
[419035535,1774797037710,-20771.71096523,0.00011499,2]
[419035536,1774797037722,-19468.68671659,0.00011499,2]
[419035537,1774797037762,-469.10245822,0.00011499,2]
[419035538,1774797037883,-1643445.81016282,0.00011499,2]
[419035579,1774797040575,-700.0,0.000108,3]
[419035580,1774797040584,-500.0,0.00011399,2]
[419035581,1774797040593,-69931.95548781,0.00011499,2]
[419035582,1774797040605,-36816.67648242,0.00011499,2]
[419035594,1774797045867,-703.79694984,0.000109,3]
[419035595,1774797046007,-396.20305016,0.000109,3]
[419035596,1774797046018,-1931.58446497,0.00011399,2]
[419035597,1774797046027,-500.0,0.00011498,2]
[419035598,1774797046037,-7778.41981739,0.00011499,2]
[419035599,1774797046049,-808.71613983,0.00011499,2]
[419035600,1774797046071,-15100.0,0.00011499,2]
[419035601,1774797046139,-1022.79832148,0.00011499,2]
[419035602,1774797046151,-954.67114887,0.00011499,2]
[419035603,1774797046162,-999.4796696,0.00011499,2]
[419035610,1774797057468,747.09,9.209e-05,2]
[419035612,1774797184058,409.85,8.915e-05,2]
[419035613,1774797185329,459.22,9.807e-05,2]
[419035614,1774797334571,293.2578206,0.000108,30]
[419035615,1774797355335,2000.0,0.00010492,2]
[419035616,1774797430440,500.0,0.0002555,120]
[419035617,1774797445572,500.0,0.0002555,120]
[419035618,1774797634792,682.7,0.0001027,2]
[419035619,1774797705982,198.55759632,0.00010451,2]
[419035620,1774797886105,535.18,0.00010108,2]
[419035622,1774798023305,218.77,0.00010259,2]
[419035623,1774798138588,582.27,9.631e-05,2]
[419035624,1774798202004,300.0,0.00010499,2]
[419035625,1774798203142,300.0,0.00010499,2]
[419035626,1774798205795,1200.0,0.00010499,2]
[419035637,1774798231772,333.04893,0.00010551,30]
[419035641,1774798232457,-3400.0,0.000105,3]
[419035642,1774798232467,-900.0,0.000105,3]
[419035643,1774798232478,-700.0,0.000105,3]
[419035644,1774798232489,-269.0,0.00010533,2]
[419035645,1774798232500,-166.7,0.00010551,2]
[419035646,1774798232509,-198.55759631,0.00010599,2]
[419035647,1774798232519,-6800.0,0.000106,3]
[419035648,1774798232529,-1900.0,0.000106,3]
[419035649,1774798232539,-1500.0,0.000106,3]
[419035650,1774798232549,-150.0,0.00010699,2]
[419035651,1774798232559,-150.0,0.000107,2]
[419035652,1774798232568,-10200.0,0.000107,3]
[419035653,1774798232578,-2800.0,0.000107,3]
[419035654,1774798232588,-2200.0,0.000107,3]
[419035655,1774798232598,-13700.0,0.000108,3]
[419035656,1774798232607,-3800.0,0.000108,3]
[419035657,1774798232616,-3000.0,0.000108,3]
[419035658,1774798232626,-218.77,0.00010829,2]
[419035659,1774798232636,-150.0,0.000109,2]
[419035660,1774798232646,-150.0,0.000109,2]
[419035661,1774798232655,-150.0,0.000109,2]
[419035662,1774798232665,-17100.0,0.000109,3]
[419035663,1774798232675,-4800.0,0.000109,3]
[419035664,1774798232685,-3800.0,0.000109,3]
[419035665,1774798232695,-2925.15918205,0.00010924,2]
[419035666,1774798232705,-158.0,0.00010925,2]
[419035667,1774798232714,-169.54232415,0.00010939,2]
[419035668,1774798232723,-485.0,0.00010984,2]
[419035669,1774798232733,-1601.0,0.00010997,2]
[419035670,1774798232742,-388.0,0.00011006,2]
[419035671,1774798232751,-500.0,0.00011018,2]
[419035672,1774798232761,-500.0,0.00011018,2]
[419035673,1774798232771,-500.0,0.00011018,2]
[419035674,1774798232780,-500.0,0.00011018,2]
[419035675,1774798232789,-652.0,0.00011019,2]
[419035676,1774798232798,-432.0,0.00011028,2]
[419035677,1774798232808,-478.0,0.0001105,2]
[419035678,1774798232816,-196749.51557036,0.00011098,2]
[419035679,1774798232828,-65542.41403147,0.00011098,2]
[419035680,1774798232840,-21845.54571459,0.00011098,2]
[419035681,1774798232851,-11749.31288432,0.00011098,2]
[419035685,1774798237954,-315.8525653,0.00011097,2]
[419035686,1774798237966,-184.1474347,0.00011097,2]
[419035687,1774798237976,-500.0,0.00011097,2]
[419035688,1774798237986,-168.31887754,0.00011097,2]
[419035689,1774798237996,-308.22340231,0.00011097,2]
[419035690,1774798238005,-500.0,0.00011097,2]
[419035691,1774798238015,-356.05173268,0.00011097,2]
[419035692,1774798238024,-500.0,0.00011097,2]
[419035693,1774798238034,-500.0,0.00011097,2]
[419035694,1774798238044,-538.43239579,0.00011097,2]
[419035695,1774798238054,-2204113.21179926,0.00011098,2]
[419035696,1774798238065,-150.54337414,0.000111,2]
[419035697,1774798238075,-24030.5791,0.00011198,2]
[419035698,1774798238085,-2500.0,0.00011198,2]
[419035699,1774798238095,-14379.55779581,0.00011198,2]
[419035700,1774798238105,-17128.42353125,0.000112,2]
[419035701,1774798238115,-999.4158894,0.000112,2]
[419035702,1774798238125,-512.99857511,0.000112,2]
[419035703,1774798238134,-199.47320477,0.000112,2]
[419035704,1774798238144,-401.02069311,0.000112,2]
[419035705,1774798238154,-14379.55779573,0.00011231,2]
[419035706,1774798238163,-500.0,0.00011231,2]
[419035707,1774798238173,-17128.42353125,0.00011232,2]
[419035708,1774798238183,-2913.0,0.00011247,2]
[419035709,1774798238194,-347.0,0.0001126,2]
[419035710,1774798238203,-9442.0,0.0001126,2]
[419035711,1774798238213,-14379.55779573,0.00011263,2]
[419035712,1774798238222,-17128.42353125,0.00011265,2]
[419035713,1774798238232,-500.0,0.00011273,2]
[419035714,1774798238241,-500.0,0.00011273,2]
[419035715,1774798238251,-500.0,0.00011273,2]
[419035716,1774798238260,-500.0,0.00011273,2]
[419035717,1774798238270,-625.51312446,0.00011273,2]
[419035718,1774798238280,-500.0,0.00011273,2]
[419035719,1774798238290,-429.85911728,0.00011273,2]
[419035720,1774798238300,-500.0,0.00011273,2]
[419035721,1774798238310,-500.0,0.00011273,2]
[419035722,1774798238320,-169.92418884,0.00011273,2]
[419035723,1774798238329,-500.0,0.00011273,2]
[419035724,1774798238339,-167.63692162,0.00011273,2]
[419035725,1774798238350,-500.0,0.00011273,2]
[419035726,1774798238359,-500.0,0.00011273,2]
[419035727,1774798238370,-500.0,0.00011273,2]
[419035728,1774798238380,-500.0,0.00011273,2]
[419035729,1774798238389,-500.0,0.00011273,2]
[419035731,1774798238399,-167.52802512,0.00011273,2]
[419035732,1774798238408,-500.0,0.00011273,2]
[419035733,1774798238418,-500.0,0.00011273,2]
[419035734,1774798238428,-500.0,0.00011273,2]
[419035735,1774798238437,-503.40008779,0.00011273,2]
[419035736,1774798238446,-19611.67006725,0.00011282,2]
[419035737,1774798238456,-500.0,0.00011285,2]
[419035739,1774798238466,-500.0,0.00011285,2]
[419035740,1774798238475,-500.0,0.00011285,2]
[419035741,1774798238485,-500.0,0.00011285,2]
[419035742,1774798238494,-500.0,0.00011285,2]
[419035743,1774798238503,-500.0,0.00011285,2]
[419035744,1774798238512,-500.0,0.00011285,2]
[419035745,1774798238521,-500.0,0.00011285,2]
[419035746,1774798238531,-200.0,0.00011285,2]
[419035747,1774798238540,-500.0,0.00011285,2]
[419035748,1774798238550,-500.0,0.00011285,2]
[419035749,1774798238559,-500.0,0.00011285,2]
[419035750,1774798238569,-500.0,0.00011285,2]
[419035751,1774798238578,-151.0,0.00011285,2]
[419035752,1774798238587,-151.0,0.00011285,2]
[419035753,1774798238596,-151.0,0.00011285,2]
[419035754,1774798238606,-151.0,0.00011285,2]
[419035755,1774798238617,-151.0,0.00011285,2]
[419035756,1774798238627,-151.0,0.00011285,2]
[419035757,1774798238636,-151.0,0.00011285,2]
[419035758,1774798238645,-151.0,0.00011285,2]
[419035759,1774798238655,-151.0,0.00011285,2]
[419035760,1774798238664,-151.0,0.00011285,2]
[419035761,1774798238673,-151.0,0.00011285,2]
[419035762,1774798238683,-151.0,0.00011285,2]
[419035763,1774798238691,-151.0,0.00011285,2]
[419035764,1774798238701,-151.0,0.00011285,2]
[419035765,1774798238711,-151.0,0.00011285,2]
[419035766,1774798238721,-151.0,0.00011285,2]
[419035767,1774798238731,-500.0,0.00011285,2]
[419035768,1774798238740,-500.0,0.00011285,2]
[419035769,1774798238751,-151.0,0.00011285,2]
[419035770,1774798238760,-500.0,0.00011285,2]
[419035771,1774798238769,-151.0,0.00011285,2]
[419035772,1774798238780,-500.0,0.00011285,2]
[419035773,1774798238790,-151.0,0.00011285,2]
[419035774,1774798238800,-500.0,0.00011285,2]
[419035775,1774798239109,-500.0,0.00011285,2]
[419035776,1774798239122,-500.0,0.00011285,2]
[419035777,1774798239132,-151.0,0.00011285,2]
[419035778,1774798239142,-151.0,0.00011285,2]
[419035779,1774798239152,-500.0,0.00011285,2]
[419035780,1774798239162,-500.0,0.00011285,2]
[419035781,1774798239172,-151.0,0.00011285,2]
[419035782,1774798239182,-197.79122094,0.00011285,2]
[419035783,1774798239192,-500.0,0.00011285,2]
[419035784,1774798239202,-500.0,0.00011285,2]
[419035785,1774798239212,-1386.78395259,0.00011285,2]
[419035786,1774798239222,-151.0,0.00011285,2]
[419035787,1774798239231,-217.99545149,0.00011289,2]
[419035788,1774798239240,-1188.51,0.00011292,2]
[419035789,1774798239251,-151.0,0.00011296,2]
[419035790,1774798239261,-151.0,0.00011296,2]
[419035791,1774798239271,-14379.55779573,0.00011296,2]
[419035792,1774798239281,-17128.42353125,0.00011297,2]
[419035793,1774798239290,-213783.79669651,0.00011298,2]
[419035794,1774798239300,-1096.61126696,0.00011298,3]
[419035795,1774798239310,-1096.61126696,0.00011298,3]
[419035796,1774798239321,-157.0,0.000113,2]
[419035797,1774798239330,-157.0,0.000113,2]
[419035798,1774798239340,-14379.55779573,0.00011329,2]
[419035799,1774798239350,-17128.42353125,0.0001133,2]
[419035800,1774798239361,-14379.55779573,0.00011361,2]
[419035801,1774798239371,-17128.42353125,0.00011362,2]
[419035802,1774798239380,-576.47577608,0.00011373,2]
[419035803,1774798239390,-500.0,0.00011373,2]
[419035804,1774798239400,-500.64843314,0.00011373,2]
[419035805,1774798239410,-500.0,0.00011373,2]
[419035806,1774798239420,-500.0,0.00011373,2]
[419035807,1774798239430,-152.21,0.00011386,2]
[419035808,1774798239440,-217.99545149,0.00011389,2]
[419035809,1774798239450,-65223.01927979,0.0001139,2]
[419035810,1774798239460,-15685.1,0.00011393,2]
[419035811,1774798239471,-14379.55779573,0.00011394,2]
[419035812,1774798239481,-17128.42353125,0.00011395,2]
[419035813,1774798239492,-151.0,0.00011396,2]
[419035814,1774798239502,-166.474048,0.00011396,2]
[419035815,1774798239511,-1096.61126695,0.00011398,3]
[419035816,1774798239730,-432.46,0.00011399,2]
[419035817,1774798239740,-531.3115,0.00011399,2]
[419035818,1774798239749,-1000.0,0.00011399,2]
[419035819,1774798239759,-1500000.0,0.00011399,2]
[419035820,1774798239768,-151.0,0.00011399,2]
[419035821,1774798239777,-151.0,0.00011399,2]
[419035822,1774798239787,-151.0,0.00011399,2]
[419035823,1774798239796,-151.0,0.00011399,2]
[419035824,1774798239806,-218.77,0.00011399,2]
[419035825,1774798239815,-14379.55779573,0.00011427,2]
[419035826,1774798239824,-17128.42353125,0.00011427,2]
[419035827,1774798239833,-14379.55779573,0.00011459,2]
[419035828,1774798239843,-17128.42353125,0.0001146,2]
[419035829,1774798239852,-1751.82507383,0.00011492,2]
[419035830,1774798239861,-150.0,0.00011492,2]
[419035831,1774798239871,-14379.55779573,0.00011492,2]
[419035832,1774798239880,-17128.42353125,0.00011492,2]
[419035833,1774798239889,-151.0,0.00011495,2]
[419035834,1774798239899,-1116.1796276,0.00011498,2]
[419035835,1774798239908,-133043.6582009,0.00011498,2]
[419035836,1774798239918,-4569.7215536,0.00011498,2]
[419035837,1774798239927,-4051.5663196,0.00011498,2]